[Event "*** Titled Tuesday Blitz"]
[Site "Chess.com"]
[Date "2018.12.04"]
[Round "6"]
[White "Tjktiger"]
[Black "Micki-taryan"]
[Result "1-0"]
[WhiteElo "2687"]
[BlackElo "2882"]
[TimeControl "180+2"]
[EndTime "14:22:40 PST"]
[Termination "Tjktiger won by resignation"]

1. c4 {[%clk 0:03:01.9]} 1... e5 {[%clk 0:03:00.2]} 2. Nc3 {[%clk 0:03:03.1]}
2... Nc6 {[%clk 0:03:02.1]} 3. Nf3 {[%clk 0:03:04.3]} 3... Nf6 {[%clk 0:03:04]}
4. e3 {[%clk 0:03:05.4]} 4... Bb4 {[%clk 0:03:04.6]} 5. Qc2 {[%clk 0:03:06.9]}
5... Bxc3 {[%clk 0:03:05.8]} 6. Qxc3 {[%clk 0:03:08.8]} 6... Qe7 {[%clk
0:03:05.7]} 7. b3 {[%clk 0:03:10]} 7... d5 {[%clk 0:03:04.7]} 8. d4 {[%clk
0:03:09.4]} 8... exd4 {[%clk 0:03:03.5]} 9. Nxd4 {[%clk 0:03:09.9]} 9... Nxd4
{[%clk 0:03:04.6]} 10. Qxd4 {[%clk 0:03:11.8]} 10... c5 {[%clk 0:03:03.3]} 11.
Qf4 {[%clk 0:03:12]} 11... dxc4 {[%clk 0:02:50.8]} 12. Bxc4 {[%clk 0:03:09.5]}
12... O-O {[%clk 0:02:51.9]} 13. Bb2 {[%clk 0:03:09.5]} 13... Ne4 {[%clk
0:02:50.7]} 14. Be5 {[%clk 0:02:30.9]} 14... Re8 {[%clk 0:02:36.8]} 15. O-O-O
{[%clk 0:01:50.3]} 15... Bg4 {[%clk 0:02:23.3]} 16. Rd5 {[%clk 0:01:11.6]} 16...
Be6 {[%clk 0:02:17.9]} 17. Rhd1 {[%clk 0:00:25.5]} 17... Bxd5 {[%clk 0:02:15.2]}
18. Rxd5 {[%clk 0:00:26.4]} 18... Nf6 {[%clk 0:02:16]} 19. Bxf6 {[%clk
0:00:22.4]} 19... gxf6 {[%clk 0:02:17.9]} 20. Bd3 {[%clk 0:00:16.8]} 20... Red8
{[%clk 0:02:10.7]} 21. Bxh7+ {[%clk 0:00:16.3]} 21... Kf8 {[%clk 0:02:09.1]} 22.
Rh5 {[%clk 0:00:11.4]} 22... Qd6 {[%clk 0:02:08.3]} 23. Qxd6+ {[%clk 0:00:07.4]}
23... Rxd6 {[%clk 0:02:10.2]} 24. Be4 {[%clk 0:00:08.5]} 24... Ke7 {[%clk
0:02:09.5]} 25. Bxb7 {[%clk 0:00:08.6]} 25... Rg8 {[%clk 0:02:10.1]} 26. Rxc5
{[%clk 0:00:08.7]} 26... Rgd8 {[%clk 0:02:07.7]} 27. Bf3 {[%clk 0:00:09.3]}
27... R6d7 {[%clk 0:02:07.6]} 28. Rc2 {[%clk 0:00:09.8]} 28... f5 {[%clk
0:02:08.5]} 29. h4 {[%clk 0:00:10.6]} 29... Kf6 {[%clk 0:02:10]} 30. g3 {[%clk
0:00:11.5]} 30... Rd6 {[%clk 0:02:10]} 31. a4 {[%clk 0:00:12.4]} 31... Ke5
{[%clk 0:02:09.7]} 32. h5 {[%clk 0:00:13]} 32... Kf6 {[%clk 0:02:10.8]} 33. Kb2
{[%clk 0:00:13.6]} 33... Rd2 {[%clk 0:02:11.8]} 34. Kc3 {[%clk 0:00:14.7]} 34...
Rxc2+ {[%clk 0:02:13.2]} 35. Kxc2 {[%clk 0:00:16.6]} 35... Rc8+ {[%clk
0:02:14.9]} 36. Kd3 {[%clk 0:00:17.5]} 36... Rd8+ {[%clk 0:02:16.8]} 37. Kc3
{[%clk 0:00:16.8]} 37... Rc8+ {[%clk 0:02:18.7]} 38. Kb2 {[%clk 0:00:16.2]}
38... Rd8 {[%clk 0:02:19.8]} 39. Kc3 {[%clk 0:00:15.9]} 39... Rc8+ {[%clk
0:02:21]} 40. Kd3 {[%clk 0:00:17.5]} 40... Rd8+ {[%clk 0:02:21.7]} 41. Ke2
{[%clk 0:00:19.1]} 41... a5 {[%clk 0:02:18.3]} 42. Bc6 {[%clk 0:00:18.3]} 42...
Kg5 {[%clk 0:02:15.3]} 43. Bf3 {[%clk 0:00:13.5]} 43... Rd6 {[%clk 0:02:15]} 44.
Ke1 {[%clk 0:00:13.9]} 44... Rd3 {[%clk 0:02:16.1]} 45. Bd1 {[%clk 0:00:14.9]}
45... Rd6 {[%clk 0:02:16.7]} 46. f4+ {[%clk 0:00:12.9]} 46... Kh6 {[%clk
0:02:15.9]} 47. Bc2 {[%clk 0:00:09.2]} 47... Rb6 {[%clk 0:02:16.9]} 48. Bd1
{[%clk 0:00:08.4]} 48... Re6 {[%clk 0:02:16.3]} 49. Kf2 {[%clk 0:00:06.7]} 49...
Rd6 {[%clk 0:02:18.2]} 50. Ke1 {[%clk 0:00:08]} 50... Rd3 {[%clk 0:02:19.3]} 51.
Ke2 {[%clk 0:00:09.6]} 51... Rc3 {[%clk 0:02:20.4]} 52. Kd2 {[%clk 0:00:10.6]}
52... Rc6 {[%clk 0:02:21.9]} 53. Bc2 {[%clk 0:00:09.4]} 53... Rd6+ {[%clk
0:02:23.8]} 54. Kc3 {[%clk 0:00:10.4]} 54... Rc6+ {[%clk 0:02:24.3]} 55. Kd2
{[%clk 0:00:11.9]} 55... Rb6 {[%clk 0:02:25.1]} 56. Kc3 {[%clk 0:00:12.3]} 56...
Rc6+ {[%clk 0:02:26.6]} 57. Kd2 {[%clk 0:00:12.9]} 57... Rc5 {[%clk 0:02:28.1]}
58. Bd1 {[%clk 0:00:13.5]} 58... Rd5+ {[%clk 0:02:29.6]} 59. Kc2 {[%clk
0:00:14.7]} 59... Rc5+ {[%clk 0:02:31.1]} 60. Kd2 {[%clk 0:00:15.8]} 60... Rd5+
{[%clk 0:02:33]} 61. Kc2 {[%clk 0:00:17.1]} 61... Rd6 {[%clk 0:02:34.4]} 62. Bf3
{[%clk 0:00:17.5]} 62... Rd7 {[%clk 0:02:35.7]} 63. Kc3 {[%clk 0:00:17.9]} 63...
Re7 {[%clk 0:02:37.2]} 64. Kd3 {[%clk 0:00:18.4]} 64... Rd7+ {[%clk 0:02:39.1]}
65. Kc3 {[%clk 0:00:19.7]} 65... Re7 {[%clk 0:02:40.7]} 66. Kd4 {[%clk
0:00:20.6]} 66... Rd7+ {[%clk 0:02:41.9]} 67. Kc4 {[%clk 0:00:12.5]} 67... Re7
{[%clk 0:02:43]} 68. Kd4 {[%clk 0:00:13.4]} 68... Re8 {[%clk 0:02:44.3]} 69. Bd5
{[%clk 0:00:09]} 69... Rd8 {[%clk 0:02:42.6]} 70. Ke5 {[%clk 0:00:07.3]} 70...
Kxh5 {[%clk 0:02:43.9]} 71. Bxf7+ {[%clk 0:00:07.9]} 71... Kg4 {[%clk
0:02:45.2]} 72. Be6 {[%clk 0:00:09.4]} 72... Re8 {[%clk 0:02:41]} 73. Kf6 {[%clk
0:00:09.6]} 73... Rf8+ {[%clk 0:02:42.4]} 74. Ke5 {[%clk 0:00:10.4]} 74... Re8
{[%clk 0:02:41]} 75. Kf6 {[%clk 0:00:08.5]} 75... Rf8+ {[%clk 0:02:41.8]} 76.
Ke7 {[%clk 0:00:09.1]} 76... Rb8 {[%clk 0:02:40.7]} 77. e4 {[%clk 0:00:10.2]}
77... Kxg3 {[%clk 0:02:40.2]} 78. exf5 {[%clk 0:00:09.9]} 78... Rb7+ {[%clk
0:02:41.5]} 79. Bd7 {[%clk 0:00:10.2]} 79... Rxb3 {[%clk 0:02:40.2]} 80. f6
{[%clk 0:00:11.2]} 80... Re3+ {[%clk 0:02:41.2]} 81. Be6 {[%clk 0:00:12.2]} 1-0

[Event "*** Titled Tuesday Blitz"]
[Site "Chess.com"]
[Date "2018.12.04"]
[Round "6"]
[White "Wolverine_master"]
[Black "aa175"]
[Result "1-0"]
[WhiteElo "2133"]
[BlackElo "1924"]
[TimeControl "180+2"]
[EndTime "14:22:46 PST"]
[Termination "Wolverine_master won on time"]

1. e4 {[%clk 0:03:01.9]} 1... e5 {[%clk 0:02:55.1]} 2. Nf3 {[%clk 0:03:02.8]}
2... Nc6 {[%clk 0:02:54.2]} 3. d4 {[%clk 0:03:03.9]} 3... exd4 {[%clk
0:02:50.4]} 4. Bc4 {[%clk 0:03:05.3]} 4... Nf6 {[%clk 0:02:25.5]} 5. e5 {[%clk
0:03:05.6]} 5... d5 {[%clk 0:02:19.9]} 6. Bb5 {[%clk 0:03:05.9]} 6... Ne4 {[%clk
0:02:15.3]} 7. Nxd4 {[%clk 0:03:06.4]} 7... Bd7 {[%clk 0:02:11.5]} 8. Bxc6
{[%clk 0:03:07.1]} 8... bxc6 {[%clk 0:02:07.3]} 9. O-O {[%clk 0:03:06.7]} 9...
Bc5 {[%clk 0:02:02.4]} 10. Be3 {[%clk 0:03:06.8]} 10... Qe7 {[%clk 0:02:00.3]}
11. f3 {[%clk 0:02:59.6]} 11... Nd6 {[%clk 0:01:50.8]} 12. f4 {[%clk 0:01:58]}
12... Nc4 {[%clk 0:01:47.8]} 13. Bc1 {[%clk 0:01:47]} 13... Bg4 {[%clk
0:01:46.5]} 14. Qd3 {[%clk 0:01:15.9]} 14... Be2 {[%clk 0:01:45.5]} 15. Qxe2
{[%clk 0:00:57.1]} 15... Bxd4+ {[%clk 0:01:42.1]} 16. Kh1 {[%clk 0:00:58.3]}
16... Bxb2 {[%clk 0:01:35.8]} 17. Bxb2 {[%clk 0:00:57]} 17... Nxb2 {[%clk
0:01:37.7]} 18. Nd2 {[%clk 0:00:47.5]} 18... Na4 {[%clk 0:01:33.9]} 19. Qa6
{[%clk 0:00:43.5]} 19... Nb6 {[%clk 0:01:32.4]} 20. a4 {[%clk 0:00:41.9]} 20...
Qc5 {[%clk 0:01:23.6]} 21. a5 {[%clk 0:00:35.7]} 21... Nd7 {[%clk 0:00:54.3]}
22. Qb7 {[%clk 0:00:30.2]} 22... Ke7 {[%clk 0:00:53.9]} 23. Nb3 {[%clk
0:00:18.7]} 23... Qxc2 {[%clk 0:00:47.8]} 24. Rac1 {[%clk 0:00:19.6]} 24... Rab8
{[%clk 0:00:42]} 25. Qxb8 {[%clk 0:00:13.3]} 25... Qxc1 {[%clk 0:00:22.1]} 26.
Rxc1 {[%clk 0:00:10.7]} 26... Rxb8 {[%clk 0:00:22.1]} 27. Nd4 {[%clk 0:00:11.6]}
27... Rb7 {[%clk 0:00:02.7]} 28. Nxc6+ {[%clk 0:00:12.6]} 28... Ke8 {[%clk
0:00:03.8]} 29. g4 {[%clk 0:00:10.6]} 29... Nb8 {[%clk 0:00:03]} 30. Nxb8 {[%clk
0:00:10.5]} 30... Rxb8 {[%clk 0:00:04.9]} 31. Rxc7 {[%clk 0:00:11.6]} 31... Rb1+
{[%clk 0:00:06.3]} 32. Kg2 {[%clk 0:00:12.6]} 32... Rb2+ {[%clk 0:00:08.2]} 33.
Kg3 {[%clk 0:00:13.8]} 33... a6 {[%clk 0:00:09.5]} 34. Ra7 {[%clk 0:00:13.5]}
34... Rb3+ {[%clk 0:00:10.2]} 35. Kh4 {[%clk 0:00:13.9]} 35... d4 {[%clk
0:00:11.1]} 36. Rxa6 {[%clk 0:00:14]} 36... Rb2 {[%clk 0:00:09.1]} 37. Kg3
{[%clk 0:00:05.6]} 37... d3 {[%clk 0:00:08]} 38. Rd6 {[%clk 0:00:05.8]} 38...
Rb3 {[%clk 0:00:04.4]} 39. Kf2 {[%clk 0:00:05.8]} 39... Rb2+ {[%clk 0:00:04.7]}
40. Ke3 {[%clk 0:00:07.2]} 40... Rxh2 {[%clk 0:00:04.2]} 41. Kxd3 {[%clk
0:00:08.4]} 41... Ra2 {[%clk 0:00:04.6]} 42. a6 {[%clk 0:00:05.3]} 42... g6
{[%clk 0:00:04.1]} 43. Kc4 {[%clk 0:00:06.5]} 43... h5 {[%clk 0:00:04.7]} 44.
gxh5 {[%clk 0:00:07]} 44... gxh5 {[%clk 0:00:06.6]} 45. Rh6 {[%clk 0:00:07.8]}
45... h4 {[%clk 0:00:06.1]} 46. Kb5 {[%clk 0:00:09.2]} 46... h3 {[%clk
0:00:07.1]} 47. Rxh3 {[%clk 0:00:09.7]} 47... Rb2+ {[%clk 0:00:08.4]} 48. Kc6
{[%clk 0:00:10.7]} 48... Rc2+ {[%clk 0:00:09.2]} 49. Kb7 {[%clk 0:00:12]} 49...
Rb2+ {[%clk 0:00:10.4]} 50. Ka7 {[%clk 0:00:13.6]} 50... Ke7 {[%clk 0:00:11.7]}
51. f5 {[%clk 0:00:14.2]} 51... Ke8 {[%clk 0:00:05.3]} 52. Ka8 {[%clk
0:00:11.5]} 52... Rb1 {[%clk 0:00:03.1]} 53. a7 {[%clk 0:00:12.4]} 53... Ke7
{[%clk 0:00:03.8]} 54. Rh8 {[%clk 0:00:12.4]} 54... Kd7 {[%clk 0:00:03.7]} 55.
Rb8 {[%clk 0:00:12.8]} 55... Ra1 {[%clk 0:00:03.8]} 56. Rb7+ {[%clk 0:00:14.1]}
56... Ke8 {[%clk 0:00:03.8]} 57. Kb8 {[%clk 0:00:15.5]} 1-0

[Event "*** Titled Tuesday Blitz"]
[Site "Chess.com"]
[Date "2018.12.04"]
[Round "6"]
[White "burbur555"]
[Black "josmito10"]
[Result "0-1"]
[WhiteElo "2564"]
[BlackElo "2691"]
[TimeControl "180+2"]
[EndTime "14:22:48 PST"]
[Termination "josmito10 won by resignation"]

1. d4 {[%clk 0:03:01.9]} 1... Nf6 {[%clk 0:03:01]} 2. Nf3 {[%clk 0:03:01.8]}
2... d5 {[%clk 0:03:01.9]} 3. c4 {[%clk 0:03:02.3]} 3... e6 {[%clk 0:03:02.9]}
4. g3 {[%clk 0:03:02.1]} 4... Be7 {[%clk 0:03:01.6]} 5. Bg2 {[%clk 0:03:02.3]}
5... O-O {[%clk 0:03:03.2]} 6. O-O {[%clk 0:03:02.9]} 6... dxc4 {[%clk
0:03:04.7]} 7. Qc2 {[%clk 0:03:03.5]} 7... a6 {[%clk 0:03:02.2]} 8. a4 {[%clk
0:03:03.7]} 8... Bd7 {[%clk 0:03:03.2]} 9. Bg5 {[%clk 0:03:02.2]} 9... Bc6
{[%clk 0:03:01.7]} 10. Rd1 {[%clk 0:03:02.1]} 10... Nbd7 {[%clk 0:02:53.8]} 11.
Nc3 {[%clk 0:02:59]} 11... Nd5 {[%clk 0:02:53.6]} 12. Bxe7 {[%clk 0:02:50.3]}
12... Qxe7 {[%clk 0:02:54.3]} 13. e4 {[%clk 0:02:50.6]} 13... Nxc3 {[%clk
0:02:54.5]} 14. bxc3 {[%clk 0:02:50.9]} 14... b5 {[%clk 0:02:54.6]} 15. Nd2
{[%clk 0:02:40.1]} 15... e5 {[%clk 0:02:37.1]} 16. Nf1 {[%clk 0:02:27]} 16...
Rfe8 {[%clk 0:02:29.6]} 17. Ne3 {[%clk 0:01:48.2]} 17... g6 {[%clk 0:02:22.5]}
18. Nd5 {[%clk 0:01:37.2]} 18... Bxd5 {[%clk 0:01:57.7]} 19. exd5 {[%clk
0:01:37.3]} 19... Qd6 {[%clk 0:01:41]} 20. Qb2 {[%clk 0:01:23.7]} 20... exd4
{[%clk 0:01:38.5]} 21. Rxd4 {[%clk 0:01:21.3]} 21... Rab8 {[%clk 0:01:19.3]} 22.
axb5 {[%clk 0:01:21.5]} 22... axb5 {[%clk 0:01:20.1]} 23. h4 {[%clk 0:01:08.7]}
23... Nc5 {[%clk 0:01:20.9]} 24. Rb1 {[%clk 0:00:53]} 24... Nd3 {[%clk
0:01:13.5]} 25. Qd2 {[%clk 0:00:52.3]} 25... Rb6 {[%clk 0:00:56.4]} 26. h5
{[%clk 0:00:51]} 26... Re5 {[%clk 0:00:53.4]} 27. h6 {[%clk 0:00:49.7]} 27... g5
{[%clk 0:00:45.7]} 28. Be4 {[%clk 0:00:49.1]} 28... Nc5 {[%clk 0:00:35.8]} 29.
Bc2 {[%clk 0:00:43.2]} 29... Qxh6 {[%clk 0:00:35.6]} 30. Re1 {[%clk 0:00:43.1]}
30... Rxe1+ {[%clk 0:00:32.4]} 31. Qxe1 {[%clk 0:00:43.4]} 31... Qf6 {[%clk
0:00:32.4]} 32. Qe3 {[%clk 0:00:26.5]} 32... h6 {[%clk 0:00:31.4]} 33. Rd1
{[%clk 0:00:25.4]} 33... Na4 {[%clk 0:00:23]} 34. Bxa4 {[%clk 0:00:18.4]} 34...
bxa4 {[%clk 0:00:24]} 35. Qe8+ {[%clk 0:00:19.1]} 35... Kg7 {[%clk 0:00:24.7]}
36. Qxa4 {[%clk 0:00:19.7]} 36... Qxc3 {[%clk 0:00:24.7]} 37. Qa7 {[%clk
0:00:17.1]} 37... Qe5 {[%clk 0:00:19.5]} 38. Qa2 {[%clk 0:00:16.4]} 38... c3
{[%clk 0:00:17.8]} 39. Qc4 {[%clk 0:00:16.9]} 39... Rb2 {[%clk 0:00:16.5]} 40.
Rc1 {[%clk 0:00:17.3]} 40... Kf6 {[%clk 0:00:04.3]} 41. Qxc3 {[%clk 0:00:17.9]}
41... Qxc3 {[%clk 0:00:05.1]} 42. Rxc3 {[%clk 0:00:18.8]} 42... Rb7 {[%clk
0:00:06.7]} 43. Rc6+ {[%clk 0:00:19.6]} 43... Ke5 {[%clk 0:00:08.2]} 44. Rxh6
{[%clk 0:00:20.4]} 44... Kxd5 {[%clk 0:00:09.8]} 45. Rf6 {[%clk 0:00:20.6]}
45... c5 {[%clk 0:00:09.6]} 46. Rf5+ {[%clk 0:00:21.6]} 46... Kd4 {[%clk
0:00:11.2]} 47. Rxg5 {[%clk 0:00:22.2]} 47... c4 {[%clk 0:00:12.8]} 48. Rg8
{[%clk 0:00:23]} 48... c3 {[%clk 0:00:09.7]} 49. Rd8+ {[%clk 0:00:23.3]} 49...
Kc4 {[%clk 0:00:11]} 50. Rc8+ {[%clk 0:00:23.9]} 50... Kd3 {[%clk 0:00:12.2]}
51. Rd8+ {[%clk 0:00:24.1]} 51... Ke2 {[%clk 0:00:12.7]} 52. Re8+ {[%clk
0:00:24.5]} 52... Kd1 {[%clk 0:00:12.9]} 53. Rd8+ {[%clk 0:00:25.4]} 53... Kc1
{[%clk 0:00:13.2]} 54. Rc8 {[%clk 0:00:24.6]} 54... c2 {[%clk 0:00:14.5]} 55. f4
{[%clk 0:00:25.6]} 55... Kb1 {[%clk 0:00:14.8]} 56. Kf2 {[%clk 0:00:25.7]} 56...
c1=Q {[%clk 0:00:14.6]} 0-1

[Event "*** Titled Tuesday Blitz"]
[Site "Chess.com"]
[Date "2018.12.04"]
[Round "6"]
[White "WorldChampionBulletChess"]
[Black "DonPreuss"]
[Result "1-0"]
[WhiteElo "2094"]
[BlackElo "2134"]
[TimeControl "180+2"]
[EndTime "14:22:49 PST"]
[Termination "WorldChampionBulletChess won by resignation"]

1. d4 {[%clk 0:03:01.9]} 1... Nc6 {[%clk 0:03:00]} 2. Nf3 {[%clk 0:03:02.9]}
2... e5 {[%clk 0:03:01.1]} 3. dxe5 {[%clk 0:03:03.9]} 3... f6 {[%clk 0:03:02.6]}
4. exf6 {[%clk 0:03:05]} 4... Nxf6 {[%clk 0:03:04.5]} 5. Nc3 {[%clk 0:03:05.6]}
5... d5 {[%clk 0:03:06]} 6. Bg5 {[%clk 0:03:04.9]} 6... Be6 {[%clk 0:03:04.4]}
7. e3 {[%clk 0:03:03.8]} 7... Bd6 {[%clk 0:03:05.1]} 8. Bb5 {[%clk 0:03:03.5]}
8... O-O {[%clk 0:03:05.9]} 9. O-O {[%clk 0:03:03]} 9... Qe8 {[%clk 0:03:06.9]}
10. Nd4 {[%clk 0:02:58.5]} 10... Bxh2+ {[%clk 0:03:03.6]} 11. Kxh2 {[%clk
0:02:53.7]} 11... Ng4+ {[%clk 0:03:04.3]} 12. Kg3 {[%clk 0:02:39.7]} 12... Qh5
{[%clk 0:02:44.7]} 13. Rh1 {[%clk 0:02:08.2]} 13... Qxg5 {[%clk 0:02:44.9]} 14.
Nxe6 {[%clk 0:02:08.8]} 14... Qe5+ {[%clk 0:02:21.2]} 15. Nf4 {[%clk 0:01:52.3]}
15... Nf6 {[%clk 0:01:51.9]} 16. Nxd5 {[%clk 0:01:39.3]} 16... Ne4+ {[%clk
0:01:34.4]} 17. Kf3 {[%clk 0:00:58.7]} 17... g5 {[%clk 0:01:23.2]} 18. g3 {[%clk
0:00:50.3]} 18... gxf4 {[%clk 0:01:10.4]} 19. gxf4 {[%clk 0:00:52.2]} 19... Ng5+
{[%clk 0:00:56.9]} 20. Ke2 {[%clk 0:00:47.1]} 20... Qe4 {[%clk 0:00:58]} 21.
fxg5 {[%clk 0:00:39.5]} 21... Qf3+ {[%clk 0:00:59]} 22. Kd2 {[%clk 0:00:40.5]}
22... Qxd5+ {[%clk 0:00:57.6]} 23. Bd3 {[%clk 0:00:39.8]} 23... Rxf2+ {[%clk
0:00:56.6]} 24. Kc1 {[%clk 0:00:40.3]} 24... Nb4 {[%clk 0:00:43.6]} 25. Bxh7+
{[%clk 0:00:35.2]} 25... Kg7 {[%clk 0:00:44.4]} 26. Qxd5 {[%clk 0:00:15.6]}
26... Nxd5 {[%clk 0:00:45.9]} 27. e4 {[%clk 0:00:16.7]} 27... Ne3 {[%clk
0:00:41.8]} 28. Bf5 {[%clk 0:00:13.3]} 28... Nxf5 {[%clk 0:00:23.4]} 29. exf5
{[%clk 0:00:15.2]} 29... Rxf5 {[%clk 0:00:24.7]} 30. Rg1 {[%clk 0:00:13.3]}
30... Rf2 {[%clk 0:00:25.5]} 31. b3 {[%clk 0:00:13.5]} 31... Re8 {[%clk
0:00:25.8]} 32. Kb2 {[%clk 0:00:14.5]} 32... Ree2 {[%clk 0:00:26.8]} 33. Rac1
{[%clk 0:00:15.1]} 33... Kg6 {[%clk 0:00:27.8]} 34. a3 {[%clk 0:00:13.7]} 34...
c5 {[%clk 0:00:27.8]} 35. Rg3 {[%clk 0:00:13.1]} 35... b6 {[%clk 0:00:27.7]} 36.
Rd3 {[%clk 0:00:09.3]} 36... Kxg5 {[%clk 0:00:23.2]} 37. Rd7 {[%clk 0:00:10.2]}
37... a5 {[%clk 0:00:24.2]} 38. Rd6 {[%clk 0:00:11]} 38... b5 {[%clk 0:00:19.8]}
39. Rd5+ {[%clk 0:00:11.1]} 39... Kf4 {[%clk 0:00:19.1]} 40. Rxc5 {[%clk
0:00:11.5]} 40... b4 {[%clk 0:00:21]} 41. Rc4+ {[%clk 0:00:11.2]} 41... Ke3
{[%clk 0:00:20.2]} 42. axb4 {[%clk 0:00:12.3]} 42... axb4 {[%clk 0:00:20.9]} 43.
Rxb4 {[%clk 0:00:14.2]} 43... Rg2 {[%clk 0:00:20.9]} 44. Rb8 {[%clk 0:00:14.2]}
44... Ref2 {[%clk 0:00:20.2]} 45. Re8+ {[%clk 0:00:12]} 45... Kd2 {[%clk
0:00:21.3]} 46. Rd8+ {[%clk 0:00:12.5]} 46... Ke2 {[%clk 0:00:22.4]} 47. b4
{[%clk 0:00:12.9]} 47... Rf4 {[%clk 0:00:20.6]} 48. Kb3 {[%clk 0:00:10.8]} 48...
Rgg4 {[%clk 0:00:20.3]} 49. c3 {[%clk 0:00:10.9]} 49... Ke3 {[%clk 0:00:20.1]}
50. Re1+ {[%clk 0:00:11.4]} 50... Kf2 {[%clk 0:00:19.6]} 51. Ree8 {[%clk
0:00:12.5]} 51... Rg1 {[%clk 0:00:16.6]} 52. Rf8 {[%clk 0:00:12.9]} 52... Rb1+
{[%clk 0:00:15.3]} 53. Ka4 {[%clk 0:00:13.3]} 53... Rxf8 {[%clk 0:00:13.6]} 54.
Rxf8+ {[%clk 0:00:14.3]} 54... Ke3 {[%clk 0:00:15.3]} 55. Rd8 {[%clk 0:00:15.4]}
55... Ke4 {[%clk 0:00:15.9]} 56. Kb5 {[%clk 0:00:16.1]} 56... Ke5 {[%clk
0:00:17]} 57. c4 {[%clk 0:00:17.3]} 57... Ke6 {[%clk 0:00:18]} 58. c5 {[%clk
0:00:17.8]} 58... Ke7 {[%clk 0:00:19.9]} 59. Rd2 {[%clk 0:00:18.2]} 1-0

[Event "*** Titled Tuesday Blitz"]
[Site "Chess.com"]
[Date "2018.12.04"]
[Round "6"]
[White "ChessQueen"]
[Black "BIG_Pirate"]
[Result "1-0"]
[WhiteElo "2551"]
[BlackElo "2358"]
[TimeControl "180+2"]
[EndTime "14:23:08 PST"]
[Termination "ChessQueen won by resignation"]

1. e4 {[%clk 0:03:01.9]} 1... d5 {[%clk 0:03:00.7]} 2. exd5 {[%clk 0:03:02.6]}
2... Qxd5 {[%clk 0:03:02.6]} 3. Nc3 {[%clk 0:03:03.2]} 3... Qa5 {[%clk
0:03:04.1]} 4. d4 {[%clk 0:03:03.7]} 4... Nf6 {[%clk 0:03:05]} 5. Nf3 {[%clk
0:03:03.9]} 5... Bg4 {[%clk 0:03:05.8]} 6. Be2 {[%clk 0:03:05.1]} 6... Nc6
{[%clk 0:03:06.3]} 7. h3 {[%clk 0:03:05.5]} 7... Bxf3 {[%clk 0:02:54.1]} 8. Bxf3
{[%clk 0:03:05.9]} 8... O-O-O {[%clk 0:02:55.7]} 9. Bxc6 {[%clk 0:03:02.8]} 9...
bxc6 {[%clk 0:02:57.6]} 10. Qf3 {[%clk 0:02:55]} 10... Qa6 {[%clk 0:02:47.4]}
11. Be3 {[%clk 0:02:45.3]} 11... e6 {[%clk 0:02:47.3]} 12. Qe2 {[%clk
0:02:42.6]} 12... Qxe2+ {[%clk 0:02:46.9]} 13. Kxe2 {[%clk 0:02:40.2]} 13... Bb4
{[%clk 0:02:43]} 14. Na4 {[%clk 0:02:36.2]} 14... Rhe8 {[%clk 0:02:17.6]} 15. c3
{[%clk 0:02:36.6]} 15... Bd6 {[%clk 0:02:18.1]} 16. Rhd1 {[%clk 0:02:22]} 16...
e5 {[%clk 0:02:02.6]} 17. dxe5 {[%clk 0:02:11.8]} 17... Rxe5 {[%clk 0:02:03.1]}
18. Kf1 {[%clk 0:02:13]} 18... Rde8 {[%clk 0:01:56.4]} 19. Bd4 {[%clk
0:01:55.3]} 19... Ra5 {[%clk 0:01:51.1]} 20. b3 {[%clk 0:01:56.3]} 20... Be5
{[%clk 0:01:24.8]} 21. Be3 {[%clk 0:01:22.3]} 21... Nd5 {[%clk 0:01:22.7]} 22.
Bd2 {[%clk 0:01:18.4]} 22... Nb6 {[%clk 0:01:08.8]} 23. Nb2 {[%clk 0:01:19.1]}
23... Rd5 {[%clk 0:01:05.2]} 24. Be1 {[%clk 0:01:13.4]} 24... Bf6 {[%clk
0:00:59.8]} 25. Rab1 {[%clk 0:01:05]} 25... Ra5 {[%clk 0:00:48.6]} 26. a4 {[%clk
0:00:59.2]} 26... Rd5 {[%clk 0:00:44.2]} 27. c4 {[%clk 0:00:55.6]} 27... Rxd1
{[%clk 0:00:40.8]} 28. Nxd1 {[%clk 0:00:57.5]} 28... Nd7 {[%clk 0:00:42]} 29.
Bd2 {[%clk 0:00:45.8]} 29... Nc5 {[%clk 0:00:42.8]} 30. Be3 {[%clk 0:00:46.5]}
30... Nd3 {[%clk 0:00:36]} 31. g3 {[%clk 0:00:43.3]} 31... a6 {[%clk 0:00:36]}
32. Ke2 {[%clk 0:00:43.1]} 32... Ne5 {[%clk 0:00:30.8]} 33. Nb2 {[%clk
0:00:40.2]} 33... Rd8 {[%clk 0:00:21.6]} 34. Rd1 {[%clk 0:00:39.7]} 34... Rxd1
{[%clk 0:00:18.3]} 35. Nxd1 {[%clk 0:00:40.6]} 35... Kd7 {[%clk 0:00:18.2]} 36.
f4 {[%clk 0:00:41.5]} 36... Ng6 {[%clk 0:00:18.2]} 37. Kd3 {[%clk 0:00:41.9]}
37... Ne7 {[%clk 0:00:18.2]} 38. g4 {[%clk 0:00:41.5]} 38... g6 {[%clk
0:00:16.1]} 39. Nf2 {[%clk 0:00:40.8]} 39... Bg7 {[%clk 0:00:16.1]} 40. Ne4
{[%clk 0:00:42]} 40... h6 {[%clk 0:00:16.5]} 41. Nc5+ {[%clk 0:00:42.9]} 41...
Kc8 {[%clk 0:00:17.5]} 42. Nxa6 {[%clk 0:00:43.9]} 42... f5 {[%clk 0:00:12.2]}
43. Nc5 {[%clk 0:00:43.3]} 43... Bf6 {[%clk 0:00:11.2]} 44. Bd4 {[%clk
0:00:35.2]} 44... Bh4 {[%clk 0:00:09.9]} 45. a5 {[%clk 0:00:30.5]} 45... fxg4
{[%clk 0:00:07.1]} 46. hxg4 {[%clk 0:00:31.1]} 46... h5 {[%clk 0:00:08.7]} 47.
gxh5 {[%clk 0:00:31.8]} 47... gxh5 {[%clk 0:00:09.8]} 48. a6 {[%clk 0:00:33.1]}
48... Kb8 {[%clk 0:00:09.6]} 49. Nd7+ {[%clk 0:00:32.6]} 49... Ka8 {[%clk
0:00:10.2]} 50. Ke4 {[%clk 0:00:32.8]} 50... Nc8 {[%clk 0:00:08.1]} 51. f5
{[%clk 0:00:28.9]} 51... Nd6+ {[%clk 0:00:08.8]} 52. Kf4 {[%clk 0:00:30.2]}
52... Be1 {[%clk 0:00:07]} 53. f6 {[%clk 0:00:28.9]} 53... h4 {[%clk 0:00:07.1]}
54. Ne5 {[%clk 0:00:26.4]} 54... Bg3+ {[%clk 0:00:06.4]} 55. Kf3 {[%clk
0:00:25.7]} 55... Bxe5 {[%clk 0:00:03.9]} 56. Bxe5 {[%clk 0:00:26.6]} 56... Nf7
{[%clk 0:00:04.8]} 57. Bd4 {[%clk 0:00:21.9]} 57... Nd6 {[%clk 0:00:03.6]} 58.
Kg4 {[%clk 0:00:20.7]} 58... Kb8 {[%clk 0:00:03.1]} 59. Bg1 {[%clk 0:00:19.2]}
59... h3 {[%clk 0:00:02.9]} 60. Kxh3 {[%clk 0:00:19.6]} 1-0